bitfinex/quotes_BTCUSD_20250614
["timestamp","ask_amount","ask_price","bid_price","bid_amount"]
[1749860879361,0.12525453,105860.0,105850.0,0.80523176]
[1749860879574,0.13470061,105860.0,105850.0,0.80523176]
[1749860880187,0.12525453,105860.0,105850.0,0.80523176]
[1749860880394,0.13470061,105860.0,105850.0,0.80523176]
[1749860880599,0.11580863,105860.0,105850.0,0.90138098]
[1749860880817,0.056363,105860.0,105850.0,0.99762274]
[1749860881047,0.028,105860.0,105850.0,1.02862274]
[1749860881256,0.028,105860.0,105850.0,1.51151209]
[1749860881474,0.028,105860.0,105850.0,1.85151209]
[1749860881685,0.016,105860.0,105850.0,1.85391434]
[1749860882130,0.028355,105890.0,105880.0,0.21722595]
[1749860882345,0.1071571,105900.0,105890.0,0.21720544]
[1749860882573,0.46606606,105900.0,105890.0,0.70617776]
[1749860882779,0.48495116,105900.0,105890.0,0.70617776]
[1749860882987,0.47612059,105900.0,105890.0,0.70617776]
[1749860883197,0.48495118,105900.0,105890.0,0.87841776]
[1749860883445,0.47612059,105900.0,105890.0,0.70665347]
[1749860883648,0.47712059,105900.0,105890.0,0.95564718]
[1749860883878,0.48012059,105900.0,105890.0,0.87877347]
[1749860884092,0.4706779,105900.0,105890.0,0.86933034]
[1749860884303,0.4801205,105900.0,105890.0,0.87877347]
[1749860884720,0.4601205,105900.0,105890.0,0.87877347]
[1749860884891,0.47290339,105900.0,105890.0,0.87877347]
[1749860885317,0.47290402,105900.0,105890.0,0.87877347]
[1749860885652,0.47290456,105900.0,105890.0,0.87877347]
[1749860886212,0.46346169,105900.0,105890.0,0.87877347]
[1749860886618,0.63343426,105900.0,105890.0,0.09671747]
[1749860886824,1.04186482,105900.0,105890.0,0.00047571]
[1749860887020,1.05826482,105900.0,105890.0,0.00047571]
[1749860887289,6.48499214,105900.0,105890.0,0.00047571]
[1749860887456,6.09226158,105900.0,105890.0,0.00047571]
[1749860888828,6.08826158,105900.0,105890.0,0.00047571]
[1749860889243,6.10626158,105900.0,105890.0,0.00147571]
[1749860889467,6.10026158,105900.0,105890.0,0.00147571]
[1749860889875,6.12426158,105900.0,105890.0,0.00247571]
[1749860891659,6.17614158,105900.0,105890.0,0.00247571]
[1749860892511,6.60591706,105900.0,105890.0,0.00247571]
[1749860892955,7.30591706,105900.0,105890.0,0.00247571]
[1749860894056,7.50591706,105900.0,105890.0,0.00247571]
[1749860894241,7.67695706,105900.0,105890.0,0.00247571]
[1749860900729,7.65445299,105900.0,105890.0,0.00247571]
[1749860900934,7.67697582,105900.0,105890.0,0.00247571]
[1749860902220,7.67393582,105900.0,105890.0,0.00247571]
[1749860905265,0.58837503,105860.0,105850.0,0.0313]
[1749860905474,0.58837503,105860.0,105850.0,0.0159]
[1749860906092,0.60729377,105860.0,105840.0,0.4683485]
[1749860906313,0.24839377,105850.0,105840.0,0.10691794]
[1749860906587,0.58839377,105850.0,105840.0,0.09151794]
[1749860906797,0.58886936,105850.0,105840.0,0.07561794]
[1749860907206,0.58886936,105850.0,105840.0,0.01989509]
[1749860908059,0.58886936,105850.0,105840.0,0.02089509]
[1749860908474,0.59086936,105850.0,105840.0,0.03889509]
[1749860908675,0.59086936,105850.0,105840.0,0.019]
[1749860909485,1.07984168,105850.0,105840.0,0.019]
[1749860910125,1.12980168,105850.0,105840.0,0.019]
[1749860911831,0.68711112,105850.0,105840.0,0.019]
[1749860912041,0.68711112,105850.0,105840.0,0.0496]
[1749860915003,0.42081704,105850.0,105840.0,0.65963888]
[1749860915210,0.26976366,105850.0,105840.0,0.8186312]
[1749860915426,0.55976366,105850.0,105840.0,0.82807897]
[1749860915630,0.42081704,105850.0,105840.0,0.9277448]
[1749860915842,0.4113698,105850.0,105840.0,0.93719239]
[1749860916053,0.4113698,105850.0,105840.0,0.84697424]
[1749860917140,0.44918304,105850.0,105840.0,0.84697424]
[1749860917785,0.4397358,105850.0,105840.0,0.84697424]
[1749860919013,0.44918304,105850.0,105840.0,0.84697424]
[1749860923032,0.10918178,105850.0,105840.0,0.84697424]
[1749860923251,0.08081578,105850.0,105840.0,0.45424368]
[1749860923460,0.27920964,105850.0,105840.0,0.42590064]
[1749860923664,0.09026302,105850.0,105840.0,0.83752665]
[1749860923872,0.09971035,105850.0,105840.0,0.83752665]
[1749860926079,0.09026293,105850.0,105840.0,0.83752665]
[1749860926723,0.09971017,105850.0,105840.0,0.83752665]
[1749860929237,0.65304716,105850.0,105840.0,0.019]
[1749860929675,0.65304716,105850.0,105840.0,0.1862]
[1749860929888,1.02141516,105850.0,105840.0,0.019]
[1749860930097,1.14825692,105850.0,105840.0,0.019]
[1749860931796,0.75552636,105850.0,105840.0,0.019]
[1749860932011,1.14825692,105850.0,105840.0,0.019]
[1749860933889,1.14825692,105850.0,105840.0,0.01832]
[1749860936207,1.84825692,105850.0,105840.0,0.01832]
[1749860936422,6.78601192,105850.0,105840.0,0.01832]
[1749860938390,7.48601192,105850.0,105840.0,0.01832]
[1749860938599,6.39328136,105850.0,105840.0,0.01832]
[1749860938816,6.77081192,105850.0,105840.0,0.01832]
[1749860939705,6.75541192,105850.0,105840.0,0.01832]
[1749860944700,1.3286846,105850.0,105840.0,0.01832]
[1749860944912,1.3286846,105850.0,105840.0,0.04952]
[1749860945131,1.81765692,105850.0,105840.0,0.01832]
[1749860946825,6.75541192,105850.0,105840.0,0.01832]
[1749860949685,6.76995277,105850.0,105840.0,0.01832]
[1749860949896,6.78535277,105850.0,105840.0,0.01832]
[1749860950135,6.80788305,105850.0,105840.0,0.01832]
[1749860950330,6.80788252,105850.0,105840.0,0.01832]
[1749860955195,6.97300252,105850.0,105840.0,0.01832]
[1749860955401,6.98830252,105850.0,105840.0,0.01832]
[1749860956063,6.98830252,105850.0,105840.0,0.018]
[1749860957337,6.28830252,105850.0,105840.0,0.018]
[1749860957744,0.19841251,105840.0,105830.0,0.02]
[1749860957877,5.62513983,105840.0,105830.0,0.02]
[1749860958082,5.82513983,105840.0,105830.0,0.02]
[1749860958758,5.84769202,105840.0,105830.0,0.02]
[1749860958964,5.85069202,105840.0,105830.0,0.039]
[1749860959143,5.82813983,105840.0,105830.0,0.039]
[1749860959770,5.85069584,105840.0,105830.0,0.039]
[1749860960233,6.55069584,105840.0,105830.0,0.039]
[1749860960457,6.57907084,105840.0,105830.0,0.039]
[1749860960882,6.62563084,105840.0,105830.0,0.039]
[1749860964609,6.62562641,105840.0,105830.0,0.039]
[1749860966472,6.60307483,105840.0,105830.0,0.039]
[1749860966712,6.62562787,105840.0,105830.0,0.039]
[1749860966913,6.62562763,105840.0,105830.0,0.039]
[1749860967406,7.08289904,105840.0,105830.0,0.039]
[1749860967605,7.64339904,105840.0,105830.0,0.039]
[1749860968069,7.25066848,105840.0,105830.0,0.039]
[1749860968480,7.24966848,105840.0,105830.0,0.039]
[1749860968654,7.24766848,105840.0,105830.0,0.02]
[1749860968828,7.25666848,105840.0,105830.0,0.02]
[1749860969031,7.25766848,105840.0,105830.0,0.023]
[1749860969593,7.24136848,105840.0,105830.0,0.023]
[1749860969800,6.75863792,105840.0,105830.0,0.023]
[1749860970010,7.20136848,105840.0,105830.0,0.023]
[1749860970388,6.75863792,105840.0,105830.0,0.023]
[1749860970611,7.20128848,105840.0,105830.0,0.023]
[1749860972996,6.99060848,105840.0,105830.0,0.023]
[1749860973212,5.92989707,105840.0,105830.0,0.0543]
[1749860973640,5.90734427,105840.0,105830.0,0.0543]
[1749860974280,6.30007483,105840.0,105830.0,0.0543]
[1749860974487,6.30007483,105840.0,105830.0,0.06314096]
[1749860974732,6.30007483,105840.0,105830.0,0.06314095]
[1749860975173,6.30007483,105840.0,105830.0,0.0543]
[1749860975381,6.30007483,105840.0,105830.0,0.06314095]
[1749860976225,6.30007483,105840.0,105830.0,0.0543]
[1749860976438,6.30007483,105840.0,105830.0,0.06314095]
[1749860976856,6.30007483,105840.0,105830.0,0.0543]
[1749860978677,6.70734624,105840.0,105830.0,0.0318567]
[1749860978903,6.89358686,105840.0,105830.0,0.0318567]
[1749860979136,6.90918686,105840.0,105830.0,0.023]
[1749860979585,6.92488686,105840.0,105830.0,0.023]
[1749860980057,7.62488686,105840.0,105830.0,0.023]
[1749860980747,7.59358686,105840.0,105830.0,0.023]
[1749860981204,6.62990489,105840.0,105830.0,0.0539]
[1749860981441,6.62990489,105840.0,105830.0,0.06275705]
[1749860981907,7.02263545,105840.0,105830.0,0.06939968]
[1749860982131,7.02263545,105840.0,105830.0,0.06054272]
[1749860982369,7.02263545,105840.0,105830.0,0.06939968]
[1749860982878,6.32263545,105840.0,105830.0,0.06054272]
[1749860983108,6.32263545,105840.0,105830.0,0.06939968]
[1749860983598,6.32263545,105840.0,105830.0,0.06054272]
[1749860983851,6.32263545,105840.0,105830.0,0.06054271]
[1749860984070,6.32263545,105840.0,105830.0,0.06939966]
[1749860984271,6.32263545,105840.0,105830.0,0.0539]
[1749860984485,6.51263545,105840.0,105830.0,0.06939966]
[1749860984898,6.51263545,105840.0,105830.0,0.06054271]
[1749860985108,6.07334489,105840.0,105830.0,0.06939966]
[1749860985324,6.11906489,105840.0,105830.0,0.08711265]
[1749860985550,5.91907175,105840.0,105830.0,0.0693991]
[1749860985767,5.91907175,105840.0,105830.0,0.08711242]
[1749860985984,5.91907175,105840.0,105830.0,0.08711245]
[1749860986215,5.91907175,105840.0,105830.0,0.08046996]
[1749860986435,5.91907175,105840.0,105830.0,0.08711245]
[1749860986660,5.91907175,105840.0,105830.0,0.08046996]
[1749860987103,5.91907175,105840.0,105830.0,0.06275665]
[1749860987324,5.91907175,105840.0,105830.0,0.08711247]
[1749860987566,5.91907175,105840.0,105830.0,0.08046998]
[1749860987786,5.89650427,105840.0,105830.0,0.08046998]
[1749860988011,5.89650427,105840.0,105830.0,0.06054249]
[1749860988466,5.70454251,105840.0,105830.0,0.25838148]
[1749860988701,0.28782242,105840.0,105830.0,0.70724552]
[1749860988928,0.28782242,105840.0,105830.0,0.69838949]
[1749860989171,0.10726992,105840.0,105830.0,0.85211044]
[1749860989408,0.038375,105840.0,105830.0,0.8521101]
[1749860989644,0.0194475,105840.0,105830.0,0.94835186]
[1749860989875,0.01889509,105840.0,105830.0,0.94535185]
[1749860990181,0.02189509,105840.0,105830.0,0.97220673]
[1749860990415,0.02189509,105840.0,105830.0,0.97220671]
[1749860990626,0.02189509,105840.0,105830.0,0.9655363]
[1749860990824,0.02189509,105840.0,105830.0,0.97215552]
[1749860991033,0.02189509,105840.0,105830.0,0.97207521]
[1749860991239,0.02189509,105840.0,105830.0,0.95443558]
[1749860991452,0.02189509,105840.0,105830.0,0.97868997]
[1749860991662,0.02189509,105840.0,105830.0,0.97868969]
[1749860991862,0.02189509,105840.0,105830.0,0.96105026]
[1749860992077,0.0124475,105840.0,105830.0,0.97868966]
[1749860992285,0.02189518,105840.0,105830.0,1.0682241]
[1749860992488,0.02189518,105840.0,105830.0,1.07483882]
[1749860992692,0.0124475,105840.0,105830.0,1.06601912]
[1749860992895,0.0124475,105840.0,105830.0,1.0748388]
[1749860993104,0.02189518,105840.0,105830.0,1.0748388]
[1749860993715,0.02189518,105840.0,105830.0,0.96325514]
[1749860993916,0.02189518,105840.0,105830.0,0.97868958]
[1749860994123,0.02189518,105840.0,105830.0,0.9698699]
[1749860994341,0.02189518,105840.0,105830.0,0.97868958]
[1749860994550,0.02189509,105840.0,105830.0,0.97868958]
[1749860994765,0.0124475,105840.0,105830.0,0.97207482]
[1749860994978,0.0124475,105840.0,105830.0,0.97868958]
[1749860995185,0.0124475,105840.0,105830.0,0.95223053]
[1749860995392,0.0124475,105840.0,105830.0,0.9698699]
[1749860995803,0.02189518,105840.0,105830.0,0.9698699]
[1749860996219,0.0124475,105840.0,105830.0,0.95223053]
[1749860996413,0.0124475,105840.0,105830.0,0.96325515]
[1749860996634,0.02189518,105840.0,105830.0,0.96325515]
[1749860996849,0.02189518,105840.0,105830.0,0.96986991]
[1749860997057,0.02189518,105840.0,105830.0,0.95223053]
[1749860997269,0.02189518,105840.0,105830.0,0.96325515]
[1749860997476,0.0124475,105840.0,105830.0,0.96986992]
[1749860997683,0.02189518,105840.0,105830.0,0.99502287]
[1749860997943,0.02189518,105840.0,105830.0,0.99502289]
[1749860998136,0.02189518,105840.0,105830.0,1.00163766]
[1749860998347,0.0124475,105840.0,105830.0,0.95223054]
[1749860998557,0.02189518,105840.0,105830.0,0.94561577]
[1749860998770,0.02189518,105840.0,105830.0,0.95223054]
[1749860998989,0.02189518,105840.0,105830.0,0.96986993]
[1749860999420,0.02189518,105840.0,105830.0,0.94505577]
[1749860999634,0.02189518,105840.0,105830.0,1.01727966]
[1749860999860,0.02189518,105840.0,105830.0,0.9930255]
[1749861000068,0.02189518,105840.0,105830.0,1.01727966]
[1749861000325,0.04079099,105840.0,105830.0,1.01727966]
[1749861001111,0.003,105840.0,105830.0,0.96930992]
[1749861001360,0.02189518,105840.0,105830.0,0.96930992]
[1749861001565,0.03134313,105840.0,105830.0,0.96930992]
[1749861001792,0.02189518,105840.0,105830.0,0.96930992]
[1749861002011,0.03134304,105840.0,105830.0,0.96269489]
[1749861002231,0.0124475,105840.0,105830.0,1.06545878]
[1749861002457,0.02189509,105840.0,105830.0,1.04120499]
[1749861002682,0.0124475,105840.0,105830.0,0.96930956]
[1749861003151,0.03134295,105840.0,105830.0,0.94505577]
[1749861003366,0.03134295,105840.0,105830.0,0.95167043]
[1749861003579,0.26086037,105840.0,105830.0,0.24440954]
[1749861003794,0.26086037,105840.0,105830.0,0.10865941]
[1749861004010,0.26086037,105840.0,105830.0,0.25345582]
[1749861004260,0.26086037,105840.0,105830.0,0.08381265]
[1749861004487,0.26086037,105840.0,105830.0,0.06841399]
[1749861004488,0.60086037,105840.0,105830.0,0.06841399]
[1749861004708,0.60086037,105840.0,105830.0,0.23145497]
[1749861004919,0.60086037,105840.0,105830.0,0.24031321]
[1749861005129,0.60086037,105840.0,105830.0,0.23145503]
[1749861005344,0.60086037,105840.0,105830.0,0.23145509]
[1749861005587,0.60086037,105840.0,105830.0,0.22259683]
[1749861005821,0.60086037,105840.0,105830.0,0.23366967]
[1749861006027,0.60086037,105840.0,105830.0,0.23141509]
[1749861006240,0.60086037,105840.0,105830.0,0.23141504]
[1749861006447,0.60086037,105840.0,105830.0,0.21369854]
[1749861006691,0.60086037,105840.0,105830.0,0.24027329]
[1749861006932,0.60086037,105840.0,105830.0,0.23351567]
[1749861007177,0.60086037,105840.0,105830.0,0.07715935]
[1749861007392,0.60086037,105840.0,105830.0,0.857381]
[1749861007393,0.053,105840.0,105830.0,0.857381]
[1749861007608,0.08134349,105840.0,105830.0,0.87288211]
[1749861007819,0.08134349,105840.0,105830.0,0.89059662]
[1749861008031,0.08134349,105840.0,105830.0,0.88043564]
[1749861008314,0.08134349,105840.0,105830.0,0.85386316]
[1749861008554,0.09079126,105840.0,105830.0,0.8715781]
[1749861008777,0.09079126,105840.0,105830.0,0.48106191]
[1749861008996,0.0624475,105840.0,105830.0,0.88043562]
[1749861009227,0.07189527,105840.0,105830.0,0.96772696]
[1749861009431,0.08134331,105840.0,105830.0,0.9677269]
[1749861009660,0.08134331,105840.0,105830.0,0.9500122]
[1749861010104,0.08134331,105840.0,105830.0,0.87157741]
[1749861011178,0.08134331,105840.0,105830.0,0.84722007]
[1749861011394,0.08134331,105840.0,105830.0,0.87157741]
[1749861012016,0.07189527,105840.0,105830.0,0.87157741]
[1749861012226,0.09079126,105840.0,105830.0,0.87157741]
[1749861012452,0.09079126,105840.0,105830.0,0.87157353]
[1749861012656,0.08134322,105840.0,105830.0,0.87157353]
[1749861013046,0.08134322,105840.0,105830.0,0.87156321]
[1749861013309,0.07189527,105840.0,105830.0,0.95285422]
[1749861013569,0.08134322,105840.0,105830.0,0.95285422]
[1749861013813,0.08134322,105840.0,105830.0,0.84722007]
[1749861014063,0.08134322,105840.0,105830.0,0.87156319]
[1749861014322,0.10026427,105840.0,105830.0,0.8538591]
[1749861014569,0.10026427,105840.0,105830.0,0.8715632]
[1749861014823,0.10026409,105840.0,105830.0,0.8715632]
[1749861015071,0.11915972,105840.0,105830.0,0.9677124]
[1749861015802,0.11915972,105840.0,105830.0,0.96107337]
[1749861016025,0.031369,105840.0,105830.0,0.96780494]
[1749861016264,0.003,105840.0,105830.0,0.96780462]
[1749861016472,0.003,105840.0,105830.0,1.3605348]
[1749861016705,0.003,105840.0,105830.0,0.96780414]
[1749861016922,0.003,105840.0,105830.0,1.03961105]
[1749861017151,0.003,105840.0,105830.0,1.06395057]
[1749861017374,0.001,105840.0,105830.0,1.02161105]
[1749861017598,0.001,105840.0,105830.0,0.65322002]
[1749861017813,0.003,105840.0,105830.0,1.0512491]
[1749861018027,0.003,105840.0,105830.0,1.06231253]
[1749861018028,0.002,105840.0,105830.0,1.06231253]
[1749861018237,0.003,105840.0,105830.0,1.07295058]
[1749861018504,0.003,105840.0,105830.0,1.06631253]
[1749861018690,0.003,105840.0,105830.0,1.04861105]
[1749861018942,0.003,105840.0,105830.0,1.07295061]
[1749861019153,0.003,105840.0,105830.0,1.07295059]
[1749861019363,0.003,105840.0,105830.0,0.66251853]
[1749861019568,0.003,105840.0,105830.0,1.05524908]
[1749861019785,0.003,105840.0,105830.0,1.08180122]
[1749861020010,0.003,105840.0,105830.0,1.07516319]
[1749861020247,0.003,105840.0,105830.0,1.06409979]
[1749861020459,0.003,105840.0,105830.0,1.08180122]
[1749861020669,0.003,105840.0,105830.0,1.06631248]
[1749861020881,0.003,105840.0,105830.0,0.95878374]
[1749861021095,0.003,105840.0,105830.0,0.98535265]
[1749861021322,0.003,105840.0,105830.0,0.98535311]
[1749861021532,0.003,105840.0,105830.0,0.96764045]
[1749861021738,0.003,105840.0,105830.0,1.06378974]
[1749861021956,0.003,105840.0,105830.0,1.06378958]
[1749861022168,0.003,105840.0,105830.0,0.96764051]
[1749861022380,0.003,105840.0,105830.0,0.96764061]
[1749861022587,0.003,105840.0,105830.0,0.96099822]
[1749861022798,0.003,105840.0,105830.0,0.96756964]
[1749861023007,0.003,105840.0,105830.0,0.96756995]
[1749861023217,0.003,105840.0,105830.0,0.95210183]
[1749861023436,0.003,105840.0,105830.0,0.96756964]
[1749861023652,0.003,105840.0,105830.0,1.00807895]
[1749861023897,0.003,105840.0,105830.0,1.40080918]
[1749861024117,0.003,105840.0,105830.0,0.99261116]
[1749861024323,0.003,105840.0,105830.0,0.99923997]
[1749861024533,0.003,105840.0,105830.0,0.99923994]
[1749861024748,0.003,105840.0,105830.0,0.99923995]
[1749861025167,0.003,105840.0,105830.0,0.99261116]
[1749861026059,0.003,105840.0,105830.0,1.40651134]
[1749861026273,0.003,105840.0,105830.0,1.7465108]
[1749861026483,0.003,105840.0,105830.0,1.86540741]
[1749861026902,0.003,105840.0,105830.0,1.87203505]
[1749861029232,0.003,105840.0,105830.0,1.86540741]
[1749861029642,0.003,105840.0,105830.0,1.87203505]
[1749861030078,0.003,105840.0,105830.0,1.86540741]
[1749861030920,0.003,105840.0,105830.0,1.87203505]
[1749861031370,0.003,105840.0,105830.0,1.87201675]
[1749861031814,0.003,105840.0,105830.0,1.86540741]
[1749861032033,0.003,105840.0,105830.0,1.87201675]
[1749861032471,0.003,105840.0,105830.0,1.8720166]
[1749861032692,0.003,105840.0,105830.0,1.87201652]
[1749861032903,0.003,105840.0,105830.0,1.87201677]
[1749861033113,0.003,105840.0,105830.0,1.87201674]
[1749861033325,0.003,105840.0,105830.0,1.8720167]
[1749861033535,0.003,105840.0,105830.0,1.79649201]
[1749861033801,0.003,105840.0,105830.0,1.79649202]
[1749861034003,0.003,105840.0,105830.0,1.87201666]
[1749861037237,0.003,105840.0,105830.0,1.86540741]
[1749861037445,0.003,105840.0,105830.0,1.87201666]
[1749861037647,0.003,105840.0,105830.0,1.86540741]
[1749861037850,0.003,105840.0,105830.0,1.87201666]
[1749861042357,0.003,105840.0,105830.0,1.86540741]
[1749861042581,0.003,105840.0,105830.0,1.87201793]
[1749861043184,0.003,105840.0,105830.0,1.86540741]
[1749861043395,0.003,105840.0,105830.0,1.87201793]
[1749861043597,0.003,105840.0,105830.0,1.86540741]
[1749861043821,0.003,105840.0,105830.0,1.82201793]
[1749861044032,0.003,105840.0,105830.0,1.86540741]
[1749861044243,0.003,105840.0,105830.0,1.87201791]
[1749861045659,0.003,105840.0,105830.0,1.87202248]
[1749861045877,0.003,105840.0,105830.0,1.86540741]
[1749861046546,0.003,105840.0,105830.0,1.87202246]
[1749861046764,0.003,105840.0,105830.0,1.86540741]
[1749861046982,0.003,105840.0,105830.0,1.91670246]
[1749861048226,0.003,105840.0,105830.0,1.75414246]
[1749861048397,0.003,105840.0,105830.0,1.91634248]
[1749861048800,0.003,105840.0,105830.0,1.91634264]
[1749861049844,0.003,105840.0,105830.0,1.90972741]
[1749861050041,0.003,105840.0,105830.0,1.91634273]
[1749861050926,0.003,105840.0,105830.0,1.91634266]
[1749861051157,0.003,105840.0,105830.0,1.91634259]
[1749861051618,0.003,105840.0,105830.0,1.91634262]
[1749861051815,0.00047559,105850.0,105840.0,1.38961002]
[1749861051988,0.00047559,105850.0,105840.0,1.86959095]
[1749861052185,0.00047559,105850.0,105840.0,1.87620589]
[1749861052339,0.00047559,105850.0,105840.0,1.8762059]
[1749861052559,0.00047559,105850.0,105840.0,1.87090946]
[1749861052761,0.00047559,105850.0,105840.0,1.92090946]
[1749861052989,0.00047559,105850.0,105840.0,1.13944834]
[1749861052990,0.00147559,105850.0,105840.0,1.13944834]
[1749861053214,0.00147559,105850.0,105840.0,1.92490946]
[1749861053421,0.00147559,105850.0,105840.0,1.84951951]
[1749861053836,0.00147559,105850.0,105840.0,1.84951952]
[1749861054046,0.00147559,105850.0,105840.0,1.842881]
[1749861054566,0.00147559,105850.0,105840.0,1.94388421]
[1749861054767,0.00147559,105850.0,105840.0,1.9402457]
[1749861055208,0.00147559,105850.0,105840.0,1.94688423]
[1749861055625,0.00147559,105850.0,105840.0,1.9402457]
[1749861056054,0.00147559,105850.0,105840.0,1.9468841]
[1749861056501,0.00147559,105850.0,105840.0,1.94688405]
[1749861056699,0.00147559,105850.0,105840.0,1.9402457]
[1749861057540,0.00147559,105850.0,105840.0,1.94687855]
[1749861057966,0.00147559,105850.0,105840.0,1.9402457]
[1749861058169,0.00147559,105850.0,105840.0,1.94687856]
[1749861059201,0.00147559,105850.0,105840.0,1.94687855]
[1749861059407,0.00147559,105850.0,105840.0,1.94687854]
[1749861060870,0.00147559,105850.0,105840.0,1.94687819]
[1749861061076,0.00147559,105850.0,105840.0,1.9402457]
[1749861061549,0.00147559,105850.0,105840.0,1.94687768]
[1749861061764,0.00147559,105850.0,105840.0,1.94023109]
[1749861061997,0.00147559,105850.0,105840.0,1.94686303]
[1749861062232,0.00147559,105850.0,105840.0,1.94023109]
[1749861062448,0.00147559,105850.0,105840.0,1.94684707]
[1749861062662,0.00147559,105850.0,105840.0,1.94684708]
[1749861062880,0.00147559,105850.0,105840.0,1.8525129]
[1749861063092,0.00033453,105850.0,105840.0,1.8525129]
[1749861063310,0.00033453,105850.0,105840.0,1.85251279]
[1749861063930,0.00033453,105850.0,105840.0,1.845881]
[1749861064388,0.00033453,105850.0,105840.0,1.85251279]
[1749861064744,0.00033453,105850.0,105840.0,1.845881]
[1749861064949,0.00033453,105850.0,105840.0,1.85251279]
[1749861065156,0.00033453,105850.0,105840.0,1.85251275]
[1749861065390,0.00033453,105850.0,105840.0,1.85251274]
[1749861066547,0.00033453,105850.0,105840.0,1.845881]
[1749861066777,0.00033453,105850.0,105840.0,1.85251268]
[1749861066991,0.00033453,105850.0,105840.0,1.845881]
[1749861067199,0.00033453,105850.0,105840.0,1.98462326]
[1749861067404,0.00033453,105850.0,105840.0,1.77111158]
[1749861067614,0.00033453,105850.0,105840.0,1.98454326]
[1749861067836,0.00033453,105850.0,105840.0,1.845801]
[1749861068044,0.00033453,105850.0,105840.0,1.85243269]
[1749861068271,0.00033453,105850.0,105840.0,1.845801]
[1749861068492,0.00033453,105850.0,105840.0,1.85243268]
[1749861069999,0.00033453,105850.0,105840.0,1.845801]
[1749861070214,0.00033453,105850.0,105840.0,1.85243268]
[1749861070428,0.00033453,105850.0,105840.0,1.64563268]
[1749861070688,0.00033453,105850.0,105840.0,1.94668212]
[1749861070908,0.00033453,105850.0,105840.0,1.94668226]
[1749861071143,0.00033453,105850.0,105840.0,1.94668229]
[1749861071374,0.00033453,105850.0,105840.0,1.89005044]
[1749861071614,0.00033453,105850.0,105840.0,1.94668229]
[1749861072907,0.00033453,105850.0,105840.0,1.94668221]
[1749861073144,0.00033453,105850.0,105840.0,1.845801]
[1749861073347,0.00033453,105850.0,105840.0,1.85243271]
[1749861075019,0.00033453,105850.0,105840.0,1.845801]
[1749861075260,0.0161,105880.0,105870.0,0.21724647]
[1749861075489,0.03214754,105880.0,105870.0,0.91080393]
[1749861075722,0.03214754,105880.0,105870.0,0.91744364]
[1749861076709,0.03214754,105880.0,105870.0,0.91080393]
[1749861076956,0.03214754,105880.0,105870.0,0.91744364]
[1749861077715,0.03214754,105880.0,105870.0,0.91744365]
[1749861077968,0.03214754,105880.0,105870.0,0.35599337]
[1749861078176,0.04159148,105880.0,105870.0,0.87493852]
[1749861078404,0.03214754,105880.0,105870.0,0.87493852]
[1749861078629,0.03214754,105880.0,105870.0,0.87493867]
[1749861078840,0.04159148,105880.0,105870.0,0.87493871]
[1749861079049,0.04159148,105880.0,105870.0,0.87492712]
[1749861079746,0.04159148,105880.0,105870.0,0.86829879]
[1749861079956,0.04159148,105880.0,105870.0,0.97107634]
[1749861080168,0.05103559,105880.0,105870.0,0.87492712]
[1749861080373,0.04159148,105880.0,105870.0,0.86829879]
[1749861080596,0.04159148,105880.0,105870.0,0.87492712]
[1749861082076,0.04159148,105880.0,105870.0,0.48219656]
[1749861082300,0.68265985,105880.0,105870.0,0.37590346]
[1749861082529,0.68265985,105880.0,105870.0,0.38534891]
[1749861082745,0.68265985,105880.0,105870.0,0.015467]
[1749861082965,0.28992929,105880.0,105870.0,0.17087866]
[1749861083183,0.28992929,105880.0,105870.0,0.1775078]
[1749861083394,0.28992929,105880.0,105870.0,0.177508]
[1749861083616,0.28992929,105880.0,105870.0,0.17148554]
[1749861083828,0.28992929,105880.0,105870.0,0.17750801]
[1749861084037,0.28992929,105880.0,105870.0,0.16866915]
[1749861084249,0.28992929,105880.0,105870.0,0.00662915]
[1749861084489,0.28992929,105880.0,105870.0,0.17087889]
[1749861084695,0.28992929,105880.0,105870.0,0.16866916]
[1749861084898,0.28992929,105880.0,105870.0,0.16866921]
[1749861085126,0.28992929,105880.0,105870.0,0.17750816]
[1749861085331,0.28992929,105880.0,105870.0,0.16866921]
[1749861085559,0.11048015,105880.0,105870.0,0.81906678]
[1749861085740,0.30881788,105880.0,105870.0,0.43517504]
[1749861085967,0.30881788,105880.0,105870.0,0.38530915]
[1749861086169,0.29937394,105880.0,105870.0,0.38530935]
[1749861086378,0.29937394,105880.0,105870.0,0.37647063]
[1749861086555,0.29937394,105880.0,105870.0,0.37868041]
[1749861086759,0.29937394,105880.0,105870.0,0.38530956]
[1749861087010,0.28992974,105880.0,105870.0,0.38530978]
[1749861087223,0.28992974,105880.0,105870.0,0.38812589]
[1749861087403,0.28992974,105880.0,105870.0,0.39478209]
[1749861087645,0.28992974,105880.0,105870.0,0.379287]
[1749861087858,0.23005646,105870.0,105850.0,0.19836346]
[1749861088077,0.10059243,105860.0,105850.0,0.32899499]
[1749861088282,0.10059243,105860.0,105850.0,0.48439403]
[1749861088484,0.10059243,105860.0,105850.0,0.4843942]
[1749861088686,0.10059243,105860.0,105850.0,0.49103555]
[1749861088921,0.29896728,105860.0,105850.0,0.39479388]
[1749861089140,0.14784632,105860.0,105850.0,0.39759923]
[1749861089320,0.14784632,105860.0,105850.0,0.45941843]
[1749861089578,0.14784632,105860.0,105850.0,0.45841843]
[1749861089755,0.14784632,105860.0,105850.0,0.45177708]
[1749861089995,0.12895389,105860.0,105850.0,0.47127377]
[1749861090200,0.12895389,105860.0,105850.0,0.45577708]
[1749861090379,0.12895389,105860.0,105850.0,0.45277708]
[1749861090648,0.12895389,105860.0,105850.0,0.47127384]
[1749861090880,0.12895389,105860.0,105850.0,0.45577708]
[1749861091090,0.12895389,105860.0,105850.0,0.47127384]
[1749861091295,0.1289538,105860.0,105850.0,0.86400436]
[1749861091516,0.1289538,105860.0,105850.0,0.85736289]
[1749861091735,0.11950781,105860.0,105850.0,0.85514906]
[1749861091978,0.110062,105860.0,105850.0,0.88171476]
[1749861092185,0.028362,105860.0,105850.0,0.97795646]
[1749861092611,0.028362,105860.0,105850.0,0.97131421]
[1749861092804,0.12902548,105870.0,105860.0,0.217267]
[1749861092992,0.11958012,105870.0,105860.0,0.62549365]
[1749861093244,0.14794012,105870.0,105860.0,0.64320346]
[1749861093649,0.14794012,105870.0,105860.0,0.63656228]
[1749861093787,0.14794012,105870.0,105860.0,0.6254566]
[1749861093987,0.14794012,105870.0,105860.0,0.64506453]
[1749861094193,0.15738548,105870.0,105860.0,0.64506453]
[1749861094394,0.15738548,105870.0,105860.0,0.23469825]
[1749861094638,0.3368521,105870.0,105860.0,0.24288817]